Cogmind - Beta 16.1 @@@ ROGUE MODE // 2026.03.01 @ 16:15:16 Player: YouButSmellier Result: Destroyed by G-47 Trooper with Particle Gun Performance ------------- Evolutions (2) 1000 Regions Visited (3) 600 Robots Destroyed (68) 340 Value Destroyed (1774) 1774 Prototype IDs (6) 120 Alien Tech Used (0) 0 Bonus (94) 94 TOTAL SCORE: 3928 Bonus ------- High Alert Combat Kills 94 Cogmind --------- Core Integrity 0/550 Matter 300/300 Energy 335/460 System Corruption 6% Temperature Warm (132) Movement Walking (270) Ox2 Location -8/Materials Parts ------- > --- POWER (2) -------- Heavy Ion Engine Heavy Ion Engine > --- PROPULSION (2) --- Titanium Leg > --- UTILITY (5) ------ Improved Heat Sink Medium Storage Unit Transport Network Coupler > --- WEAPON (2) ------- Field Laser Beamcaster > --- INVENTORY (10) --- Visual Processing Unit Hacking Suite Authchip [Processor] Shock Bomb Launcher Advanced EMP Blaster Datajack Scythe Peak State ------------ > --- POWER ------------ Heavy Ion Engine Heavy Ion Engine > --- PROPULSION ------- Carbon-fiber Leg Titanium Leg > --- UTILITY ---------- Improved Heat Sink Medium Storage Unit Improved Sensor Array Transport Network Coupler Hacking Suite > --- WEAPON ----------- Beamcaster Assault Cannon > --- INVENTORY -------- Heavy Ion Engine Titanium Leg Visual Processing Unit Authchip [Processor] Heavy EM Pulse Gun Field Laser Shock Bomb Launcher Advanced EMP Blaster Scythe [Rating: 33] Favorites ----------- Power Heavy Ion Engine Engine Heavy Ion Engine Power Core Light Nuclear Core Propulsion Aluminum Leg Leg Aluminum Leg Utility Improved Heat Sink Device Improved Heat Sink Storage Small Storage Unit Processor Targeting Computer Hackware Hacking Suite Protection Scrap Shield Weapon Light Assault Rifle Energy Gun Beamcaster Ballistic Gun Light Assault Rifle Ballistic Cannon Assault Cannon Launcher Advanced EMP Blaster Impact Weapon Heavy Flail Slashing Weapon Scythe Special Melee Weapon Datajack Build | -11 -10 -10 -8 ------- Run | Yrd Mat Sub Mat Slots Evolved 4 | . . . 4 Power 1 | . . . 1 Propulsion . | . . . . Utility 3 | . . . 3 Weapon . | . . . . Parts Attached 64 | 7 16 3 38 Power 13 | 2 2 . 9 Engine 12 | 2 1 . 9 Core 1 | . 1 . . Reactor . | . . . . Propulsion 16 | 2 6 . 8 Treads . | . . . . Leg 16 | 2 6 . 8 Wheel . | . . . . Hover . | . . . . Flight . | . . . . Utility 18 | 1 4 1 12 Device 8 | . 1 . 7 Storage 3 | 1 1 . 1 Processor 3 | . 1 . 2 Hackware 1 | . . . 1 Protection 3 | . 1 1 1 Artifact . | . . . . Weapon 17 | 2 4 2 9 Energy Gun 5 | . 1 1 3 Energy Cannon . | . . . . Ballistic Gun 6 | 2 2 1 1 Ballistic Cannon 1 | . . . 1 Launcher 1 | . . . 1 Special Weapon . | . . . . Impact Weapon 1 | . . . 1 Slashing Weapon 1 | . . . 1 Piercing Weapon . | . . . . Special Melee Weapon 2 | . 1 . 1 Unidentified Prototypes 2 | . . . 2 Parts Lost 16 | . 2 . 14 Power 3 | . . . 3 Propulsion 2 | . . . 2 Utility 6 | . . . 6 Weapon 5 | . 2 . 3 Highest Loss Streak 4 | . 1 . 4 To Critical Strikes 1 | . 1 . . Average Backups 7 | . 6 5 8 Power . | . 1 . . Propulsion 1 | . 1 1 1 Utility 2 | . 1 3 2 Weapon 2 | . . 1 3 Tool/Special . | . . . . Unused Backups 13 | . 4 2 7 Power 2 | . 1 . 1 Propulsion 2 | . . 1 1 Utility 6 | . 2 1 3 Weapon 3 | . 1 . 2 Tool/Special . | . . . . Average Slot Usage (%) 94 | . 98 88 95 Engine 13 | . 8 14 16 Core 1 | . 5 . . Leg 22 | . 28 28 17 Device 13 | . 5 . 21 Storage 8 | . 13 2 9 Processor 6 | . 7 2 7 Hackware 2 | . . . 3 Protection 2 | . . 11 1 Energy Gun 5 | . 3 9 5 Ballistic Gun 11 | . 21 18 4 Ballistic Cannon 1 | . . . 2 Slashing Weapon 3 | . . . 5 Peak Build Rating 33 | 6 9 12 33 Average Rating 19 | 5 7 10 27 On Entrance 6 | . 6 7 12 Avg Prop Armor Cover (%) . | . . . . Naked Turns . | . . . . Heaviest Build 47 | 11 15 29 47 Greatest Support 34 | 20 20 20 34 Greatest Overweight (x) 2 | 2 . 1 2 Average Overweight (x) . | . . . . Largest Inventory Capacity 20 | 8 20 8 10 Average Capacity 8 | 7 7 5 9 Most Carried 10 | 2 8 8 10 Average Carried 7 | . 6 5 8 Final Capacity 10 | 8 8 5 10 Final Carried 8 | 2 8 5 7 Class Distribution -------------------- 71% | Mutant 28% | Scavenger-Mutant Dominant Class ---------------- Mutant | -10/Materials Mutant | -10/Subcaves Mutant | -8/Materials Resources | -11 -10 -10 -8 ----------- Run | Yrd Mat Sub Mat Matter Collected 1880 | 190 414 185 1091 Remotely . | . . . . Salvage Created 2425 | 14 414 65 1932 Parts 146 | 4 33 5 104 Haulers Intercepted 3 | . . . 3 Recyclers Shooed 2 | . 1 . 1 Parts Field Recycled . | . . . . Retrieved Matter . | . . . . Parts Self-Destructed 8 | . . 8 . Prevented . | . . . . Parts Restored . | . . . . Kills | -11 -10 -10 -8 ------- Run | Yrd Mat Sub Mat Combat Hostiles Destroyed 53 | . 15 3 35 Melee 18 | . . . 18 Guns 34 | . 15 3 16 Cannons 1 | . . . 1 Classes Destroyed 11 | 1 3 1 6 Worker 3 | 1 . . 2 Hauler 3 | . . . 3 Recycler 4 | . . . 4 Operator 2 | . 1 . 1 Watcher 3 | . . . 3 Swarmer 21 | . 9 2 10 Grunt 24 | . 6 . 18 Brawler 1 | . . . 1 Duelist 1 | . . . 1 Sentry 5 | . . . 5 Subdweller 1 | . . 1 . Best Kill Streak 6 | 1 3 2 6 Combat Bots Only 4 | . 3 2 4 Max Kills in Single Turn 2 | 1 1 2 1 Gunslinging 1 | . . 1 . Exploded . | . . . . Melee 1 | . . . 1 Uniques/NPCs Destroyed . | . . . . Combat | -11 -10 -10 -8 -------- Run | Yrd Mat Sub Mat Hostile Shots Fired 450 | . 134 20 296 Missed 136 | . 49 9 78 Hits 314 | . 85 11 218 Melee 3 | . . . 3 Projectile 311 | . 85 11 215 Critical Strikes 7 | . 1 . 6 Damage Taken 3815 | . 810 142 2863 Core 753 | . 192 6 555 Absorbed by Shields . | . . . . Regen/Repaired (Parts) 73 | . . . 73 Core Remaining (%) 60 | 100 . 20 . Volleys Fired 192 | 10 79 7 96 Largest 2 | 2 2 2 2 Hottest 138 | 40 60 85 138 Shots Fired 326 | 20 119 14 173 Gun 297 | 20 119 14 144 Cannon 28 | . . . 28 Launcher 1 | . . . 1 Special . | . . . . Kinetic 231 | 20 111 7 93 Thermal 94 | . 8 7 79 Explosive . | . . . . Electromagnetic 1 | . . . 1 Robot Hit Streak 10 | 9 9 8 10 Robot Miss Streak 6 | 4 6 3 5 Penetration Max . | . . . . Secondary Targets 5 | . 2 1 2 Max Gunslinging Chain 1 | . 1 1 1 Shots Hit Robots 264 | 14 72 9 169 Core Hits 108 | 2 35 4 67 Critical Kills 1 | . . 1 . Critical Parts Destroyed 1 | . . . 1 Critical Strikes 8 | . . 1 7 Burn 2 | . . . 2 Destroy 2 | . . 1 1 Sever 4 | . . . 4 Melee Attacks 104 | . 5 . 99 Impact 5 | . . . 5 Slashing 93 | . . . 93 Piercing . | . . . . Sneak Attacks 12 | . 4 . 8 Combat Hostiles . | . . . . Follow-up Attacks . | . . . . Damage Inflicted 5275 | 143 615 114 4403 Guns 2693 | 143 615 114 1821 Cannons 349 | . . . 349 Explosions 125 | . . . 125 Melee 2103 | . . . 2103 Ramming 5 | . . . 5 Kinetic 1843 | 143 571 56 1073 Thermal 1199 | . 44 58 1097 Explosive . | . . . . Electromagnetic 125 | . . . 125 Impact 127 | . . . 127 Slashing 1976 | . . . 1976 Piercing . | . . . . Highest Corruption 6 | . . . 6 Average Corruption 6 | . . . 6 Corruption Purged . | . . . . Corruption Blocked . | . . . . Effects 39 | . . . 39 Message Errors 9 | . . . 9 Matter Fused 13 | . . . 13 Heat Flow Errors 3 | . . . 3 Energy Discharges 3 | . . . 3 Parts Fused 1 | . . . 1 Data Loss (minor) 4 | . . . 4 Data Loss (major) 1 | . . . 1 Misfires 3 | . . . 3 Weapon Failures 2 | . . . 2 Overload Shots . | . . . . Overflow Damage 130 | . . . 130 Projectiles . | . . . . Explosions . | . . . . Melee 130 | . . . 130 Knockbacks 4 | . . . 4 Impact . | . . . . Kinetic 3 | . . . 3 Secondary 1 | . . . 1 Self-Inflicted Damage 15 | . . . 15 Shots 1 | . . . 1 Rammed . | . . . . Targets Rammed 1 | . . . 1 Kicked 1 | . . . 1 Crushed . | . . . . Highest Temperature 359 | . 60 13 359 Average Temperature 80 | . 11 4 110 Received Heat Transfer 1581 | . 231 18 1332 Effects 4 | . . . 4 Shutdowns 1 | . . . 1 Matter Decay 1 | . . . 1 Short Circuit 1 | . . . 1 Damage (minor) 1 | . . . 1 Siege Activations . | . . . . Martial Activations . | . . . . Shielding Activations . | . . . . Robots Disrupted . | . . . . Combat Hostiles . | . . . . Robots Corrupted . | . . . . Combat Hostiles . | . . . . Parts Fried . | . . . . Impact Corruptions 1 | . . . 1 Robots Melted . | . . . . Combat Hostiles . | . . . . Parts Melted 3 | . 1 1 1 Heat Transferred 2395 | . 100 75 2220 Parts Sabotaged . | . . . . Parts Stolen . | . . . . Parts Stripped . | . . . . Power Chain Reactions . | . . . . Alert | -11 -10 -10 -8 ------- Run | Yrd Mat Sub Mat Maximum Alert Level 2 | . . . 2 Low Security (%) 63 | 100 100 . 47 Level 1 24 | . . . 34 Level 2 12 | . . . 17 Level 3 . | . . . . Level 4 . | . . . . Level 5 . | . . . . High Security . | . . . . Max Security . | . . . . Peak Influence 598 | 5 123 . 598 Initial 3 | . 3 . . Average 166 | . 56 . 218 Influence Increases 1662 | 5 455 40 1162 Destroy 0b10 Robot/C 1040 | . 300 40 700 Destroy 0b10 Robot/NC 75 | 5 5 . 65 Destroy Leader 222 | . 70 . 152 Successful Hack 21 | . 5 . 16 Disable Machine 15 | . . . 15 Destroy Structure 19 | . . . 19 Lose Combat Pursuer 270 | . 75 . 195 Influence Decreases 1065 | . 403 97 565 Entered New Map 30 | . 2 28 . Time Decay 895 | . 381 69 445 Lost Part 140 | . 20 . 120 Squads Dispatched 8 | . 4 . 4 Investigation 2 | . 1 . 1 Extermination . | . . . . Reinforcement 6 | . 3 . 3 Assault . | . . . . Garrison . | . . . . Intercept . | . . . . Searches Triggered . | . . . . Construction Impeded . | . . . . Haulers Reinforced . | . . . . Active Scanning Responses . | . . . . Cargo Convoy Interrupts . | . . . . Stealth | -11 -10 -10 -8 --------- Run | Yrd Mat Sub Mat Distress Signals 8 | . 4 . 4 Communications Jammed . | . . . . Distress Signals . | . . . . Times Spotted 107 | . 35 8 64 Peak Tracking Total 7 | . 6 3 7 Tactical Retreats 14 | . 3 1 10 Traps | -11 -10 -10 -8 ------- Run | Yrd Mat Sub Mat Traps Triggered 1 | . 1 . . Indirectly . | . . . . Trap Hack Attempts 4 | . 4 . . Triggered . | . . . . Disarmed 1 | . 1 . . Reprogrammed . | . . . . Reused . | . . . . Traps Extracted . | . . . . Installed . | . . . . Triggered . | . . . . Machines | -11 -10 -10 -8 ---------- Run | Yrd Mat Sub Mat Machines Disabled 1 | . . . 1 Max in Single Turn 1 | . . . 1 Machines Repaired . | . . . . Machines Dismantled . | . . . . Machines Sabotaged . | . . . . Overloaded Fab Kills . | . . . . Hacking | -11 -10 -10 -8 --------- Run | Yrd Mat Sub Mat Machines Accessed 11 | . 3 . 8 Terminals 8 | . 2 . 6 Fabricators . | . . . . Repair Stations 1 | . . . 1 Recycling Units 1 | . 1 . . Scanalyzers 1 | . . . 1 Garrison Access . | . . . . Total Hacks 30 | . 10 . 20 Successful 15 | . 5 . 10 Failed 15 | . 5 . 10 Catastrophic 7 | . 2 . 5 Database Lockouts . | . . . . Manual 11 | . 4 . 7 Terminals 21 | . 7 . 14 Fabricators . | . . . . Repair Stations 3 | . . . 3 Recycling Units 3 | . 3 . . Scanalyzers 3 | . . . 3 Garrison Access . | . . . . Terminal Hacks 7 | . 2 . 5 Record 1 | . . . 1 Prototype ID Bank 2 | . 1 . 1 Terminal Index 1 | . . . 1 Alert Level 1 | . . . 1 Locate Traps 1 | . 1 . . Zone Layout 1 | . . . 1 Fabricator Hacks . | . . . . Repair Station Hacks 2 | . . . 2 Scan Component 1 | . . . 1 Repair 1 | . . . 1 Recycling Unit Hacks 3 | . 3 . . Process 1 | . 1 . . Report Inventory 1 | . 1 . . Retrieve Matter 1 | . 1 . . Scanalyzer 3 | . . . 3 Insert Component 1 | . . . 1 Analyze 1 | . . . 1 Retrieve Study 1 | . . . 1 Garrison Access Hacks . | . . . . Unauthorized Hacks . | . . . . Terminals . | . . . . Fabricators . | . . . . Repair Stations . | . . . . Recycling Units . | . . . . Scanalyzers . | . . . . Garrison Access . | . . . . Data Cores Recovered . | . . . . Used . | . . . . Hacking Detections 8 | . 3 . 5 Full Trace Events 3 | . 2 . 1 Feedback Events . | . . . . Feedback Blocked . | . . . . Robot Schematics Acquired . | . . . . Robots Built . | . . . . Authchips . | . . . . Time . | . . . . Total Robot Build Rating . | . . . . Part Schematics Acquired 1 | . . . 1 Parts Built . | . . . . Authchips . | . . . . Time . | . . . . Total Part Build Rating . | . . . . Part Studies Acquired 1 | . . . 1 Parts Repaired 1 | . . . 1 Time 50 | . . . 50 Parts Recycled . | . . . . Recycled Matter 5 | . 5 . . Retrieved Matter 5 | . 5 . . Retrieved Components . | . . . . Parts Scanalyzed 1 | . . . 1 Part Schematics Acquired 1 | . . . 1 Parts Damaged 1 | . . . 1 Bothacking | -11 -10 -10 -8 ------------ Run | Yrd Mat Sub Mat Used RIF Installer . | . . . . Robots Hacked 3 | . 3 . . Non-combat 2 | . 2 . . Combat 1 | . 1 . . Robot Hacks Applied 5 | . 5 . . parse_system 2 | . 2 . . no_distress 2 | . 2 . . check_alert 1 | . 1 . . Relay Couplers Released . | . . . . Fabnet Peak Effective % . | . . . . Robots Rewired . | . . . . Allies Hacked . | . . . . Hacks Repelled . | . . . . Allies | -11 -10 -10 -8 -------- Run | Yrd Mat Sub Mat Total Allies . | . . . . Largest Group . | . . . . Highest-Rated Group . | . . . . Highest-Rated Ally . | . . . . Total Orders . | . . . . Ally Attacks . | . . . . Total Damage . | . . . . Kills . | . . . . Allies Corrupted . | . . . . Allies Melted . | . . . . Intel | -11 -10 -10 -8 ------- Run | Yrd Mat Sub Mat Active Infowar (turns) 3267 | . 460 . 2807 Sensors 2532 | . . . 2532 Structural 1996 | . 460 . 1536 T.N.C. 1172 | . . . 1172 Robot Analysis Total . | . . . . Derelict Logs Recovered 2 | . . 2 . Drone Launches . | . . . . Drone Recoveries . | . . . . Exploration | -11 -10 -10 -8 ------------- Run | Yrd Mat Sub Mat Turns Passed 5016 | 115 1153 940 2808 Spaces Moved 2215 | 59 677 514 965 Core 11 | 11 . . . Treads . | . . . . Legs 2204 | 48 677 514 965 Wheels . | . . . . Hover . | . . . . Flight . | . . . . Fastest Speed 50 | 50 120 120 112 Average Speed 147 | 112 120 171 155 Slowest Speed 270 | 150 120 190 270 Overloaded Moves . | . . . . Propulsion Burnouts . | . . . . Robots Hopped . | . . . . Potential Cave-ins . | . . . . Cave-ins Triggered . | . . . . Exploration Rate (%) 45 | 3 88 35 56 Regions Visited 3 Branch Regions 1 Pre-discovered Areas 2 | . . 2 . Known Exits Taken 1 | . 1 . . Unknown Exits Taken 2 | 1 . 1 . Scrap Searched . | . . . . Spaces Dug 11 | . . . 11 Terrain Destroyed 15 | . . . 15 Melee 9 | . . . 9 Projectile 6 | . . . 6 AOE . | . . . . Terrain Rammed . | . . . . Walls Destroyed . | . . . . Machines Disabled . | . . . . Actions | -11 -10 -10 -8 --------- Run | Yrd Mat Sub Mat Total 3509 | 87 908 563 1951 Wait 794 | 9 87 20 678 Move 2212 | 58 676 513 965 Hop . | . . . . Pick Up 47 | 1 17 6 23 Fast Attach 32 | 6 5 1 20 Attach 17 | 1 2 1 13 Detach 2 | 1 1 . . Swap 54 | 1 20 2 31 Drop 48 | . 12 11 25 Fire 192 | 10 79 7 96 Melee 104 | . 5 . 99 Ram . | . . . . Kick 1 | . . . 1 Crush . | . . . . Escape Stasis . | . . . . Rewire . | . . . . Trap 4 | . 4 . . Miscellaneous 2 | . . 2 . Route ------- -11/Scrapyard -10/Materials (discovered 5 exits: *Mat x2 / *Min x2 / *Sub) -10/Subcaves -8/Materials (discovered 3 exits: [*Fac x2] / [*Sto]) History --------- Turn | Location | Event 54 | -11/Scrapyard | Discovered new exit (range 15) 116 | -11/Scrapyard | Entered Materials 309 | -10/Materials | Build established: Mutant 525 | -10/Materials | Discovered new exit (range 16) 628 | -10/Materials | Discovered new exit (range 7) 636 | -10/Materials | Identified exit to Mines 701 | -10/Materials | Core integrity fell below 50% 984 | -10/Materials | Discovered new exit (range 7) 990 | -10/Materials | Identified exit to Subcaves 1076 | -10/Materials | Discovered exit to Mines (range 12) 1150 | -10/Materials | Discovered new exit (range 3) 1184 | -10/Materials | Identified exit to Materials 1269 | -10/Materials | Entered Subcaves 1270 | -10/Subcaves | Approached by a straggling Scientist 1276 | -10/Subcaves | Learned location of Zion (-7) 1400 | -10/Subcaves | A swath of the cavern ceiling suddenly collapsed 1431 | -10/Subcaves | Ambushed by swarm of Subdwellers 1442 | -10/Subcaves | Shifting Twisted Machinery released Sub. Monowheel 1511 | -10/Subcaves | Shifting Twisted Machinery released Sub. Machine Gun 1524 | -10/Subcaves | Shifting Twisted Machinery released Mak. Thermal Plating 1570 | -10/Subcaves | Shifting Twisted Machinery released Sub. Laser 2157 | -10/Subcaves | Discovered new exit (range 9) 2209 | -10/Subcaves | Entered Materials 2209 | -8/Materials | Evolved 4 slots: Power x1, Utility x3 2211 | -8/Materials | Discovered new exit (range 8) 3109 | -8/Materials | Discovered new exit (range 16) 3293 | -8/Materials | Build established: Scavenger-Mutant 3613 | -8/Materials | Core integrity fell below 50% 4004 | -8/Materials | Discovered new exit (range 3) 4030 | -8/Materials | Build established: Mutant 4590 | -8/Materials | Repaired Beamcaster 4862 | -8/Materials | Core integrity fell below 20% 4875 | -8/Materials | Build established: Scavenger-Mutant 4916 | -8/Materials | Lost 3 parts (1n1u1w) 5017 | -8/Materials | Destroyed by G-47 Trooper with Particle Gun Last Messages --------------- 04961_ R-06 Scavenger collects Med. Matter Pod. 04964_ R-06 Scavenger collects Particle Gun. 04967_ R-06 Scavenger collects Heat Sink. 04970_ PJ/QDVLC8IMI:TZIB%ZOV|TOE 04976_ S-10 Pest destroyed. 04979_ K-01 Serf collects debris. 04979_ Lgt. Armor Plating destroyed. 04983_ K-01 Serf collects debris. 04986_ Titanium Leg destroyed. 04993_ Hvy. Ion Engine destroyed. 04998_ S-10 Pest destroyed. 05002_ Hacking Suite destroyed. 05004_ Acquired 10 matter. 05004_ Destroyed Flight Unit. 05007_ S-10 Pest destroyed. 05007_ Switching to secondary target: Y-45 Defender. 05008_ K-01 Serf collects debris. 05011_ Acquired 10 matter. 05013_ K-01 Serf collects debris. Map ----- +----------------------------------------------------+ | ####????# !# #???????????? | | #########??????# | ##+###???????????? | | #########??????# % #########?????? | | ???????????????##" "## [ =# ] !!]#?????? | | ???????????????##"T"## *[#*! !] #?????? | | ????????????????#"""## %%+%! ! ##????? | | ????????????????###### [=##########????? | | ???????????? ??????# =# ##????? | | ??????????? #?????# # < ##????? | | ???????????# #?????# ##### # ##????? | | ???????????# #?????# #???# # #"####????? | | ???????????# #######+##### # ###???????? | | ???????????# ## ## # #?????????? | | ???????????# ## ## # #?????????? | | ???????????# ## """ """ + # #?????????? | | ???????????# ## """ """ #### #?????????? | | ???????????# ## " " """ #??# #?????????? | | ???????????# ## #??# #?????????? | | ???????????# ## #??# #?????????? | | ############ ## #??# #?????????? | | # ###+########## u+?????????? | | """ " " # a #?????????? | | """ "R" + ! #?????????? | | """ """ # %kY* #?????????? | | # ##########g### #?????????? | | ################## !@=k## #?????????? | | ?????????????????# % **%=# #?????????? | | ?????????????????# # #?????????? | | ?????????????????# # #?????????? | | ?????????????????##### # #?????????? | | ?????????????????????#### ## #?????????? | | ?a??????????????????###### #?????????? | | ####????????????????????? # ]?????????? | | ?????????????????= / ?????????? | | ???????????????]]= # " ?????????? | | ??????????????#]== # #????????? | | ######??????????????# ## ##????????? | | ######??????????????# """ #? #?????????? | | ???????????????????# """ #? #?????????? | | ?????? ##??????????## """ #?? ??????????? | | # ?? ##???????????# #?? ??????????? | | # ##???????? ??#+#???#+##?????????????? | | ??????? ????????? ???????????????? | | ????? ??????????? ???????????????? | | ########### ##??????????+???????????????? | | ############/### ??????????????????????????? | | ##?? # ??????????????????????????? | | = !##?? # ??????????????????????????? | | ### # ??????????????????????????? | | " [### # ??????????????????????????? | +----------------------------------------------------+ Best States ------------- Heat Dissipation 45 Energy Generation 23 Energy Capacity 460 Matter Stores 300 Matter Capacity 300 Sight Range 16 Robot Scan Range 15 Terrain Scan Density 10 Armor Coverage 800 Evasion (%) 55 Targeting Accuracy 5 Offensive Hacking 10 Authchip Count 1 Item Schematics ----------------- Carbon-fiber Leg | -8/Materials | Scanalyzed Robot Schematics ------------------ None Fabricated ------------ Nothing Repaired ---------- Beamcaster | 18% | -8/Materials Studied --------- Carbon-fiber Leg | -8/Materials | Hacked Alien Tech Used ----------------- None Achievements -------------- Bumper Bots DATA ERROR: Steam Global Achievement% For Emergencies Only I Have A Map? Item+ Junior Dev Organ Harvest Overwhelming Survival Of The Most Covered There's More Where That Came From Challenges ------------ None Game ------ Seed SpliceChipSubcomponent Manual? 0 Play Time 01:24:21 Cumulative 16.9 hours Start 2026.03.01 @ 14:49:53 End 2026.03.01 @ 16:15:16 Sessions 1 Manual Loads 0 Difficulty Rogue Special Mode None Game No. 8 Rogue 6 Adventurer 2 Explorer 0 Win Type - Total 0 Types 0/0/0/0/0/0/0/0/0/0 Lore% 8 Gallery% 16 Achievement% 10 Wizard Run 0 Options --------- Layout 1 ASCII 0 Keyboard 0 Movement Mouse Keybinds 0 Fullscreen 1 Font 32/Terminus Map View 50x35 Zoom Use 0% Tactical HUD 1 Map Filters NONE Filters NONE Steam 1 RUN: b91b5d76-999d-489d-aa86-96916bcfeac2